[Event "FIDE WCCC U10 2018"]
[Site "Santiago de Compostela"]
[Date "2018.11.13"]
[Round "9"]
[White "Matsumura, Cocoro"]
[Black "Zhong, Kevin"]
[Result "1/2-1/2"]
[ECO "B58"]
[WhiteElo "1699"]
[BlackElo "2038"]
[Annotator "NA RC"]
[PlyCount "137"]
[EventDate "2018.11.04"]
[EventType "swiss"]
[EventCountry "ESP"]
[SourceTitle "playchess.com"]
[Source "ChessBase"]
[SourceQuality "1"]
[TimeControl "40/5400+30:1800+30"]

{[%evp 8,133,29,38,35,32767,32767,32767,24,2,294,22,29,15,17,10,2,-18,-8,-15,0,-36,8,-55,0,-33,-36,-64,-53,-56,-43,32767,32767,-104,32767,-123,-133,-122,-122,32767,-107,32767,-107,32767,32767,32767,32767,32767,32767,32767,32767,32767,32767,32767,-120,32767,-142,32767,32767,32767,32767,-208,-202,32767,35,32767,-230,-272,-258,32767,-259,32767,-300,-326,-374,32767,32767,32767,32767,32767,-417,-397,-357,32767,-518,32767,32767,32767,32767,-825,32767,32767,-1623,-1505,32767,-1594,32767,-7586,32767,-12843,-12844,-29965,-5579,-4134,-6087,-5065,-29981,-29980,32767,32767,32767,32767,32767,32767,32767,32767,0,0,0,0,0,0,0,-4133,0,0,0,0]} 1. e4 {[%emt 0:00:00]} c5 {[%emt 0:00:00]} 2. Nf3 {[%emt 0:00:00]} d6 {[%emt 0:00:00]} 3. d4 {[%emt 0:00:00]} cxd4 {[%emt 0:00:00]} 4. Nxd4 {[%emt 0:00:00]} Nf6 {[%emt 0:00:00]} 5. Nc3 {[%emt 0:00:00]} Nc6 {[%emt 0:00:00] LiveBook: 32027 Games} 6. Be2 {[%emt 0:04:08]} g6 {[%emt 0:00:09]} 7. Be3 {[%emt 0:00:52]} Bg7 {[%emt 0:00:34]} 8. f3 {[%emt 0:02:53]} Qb6 $2 {[%emt 0:07:59] B72: Sicilian Dragon: 6 Be3, lines with h3+Bc4 and sidelines} (8... O-O $11 {und Schwarz muss sich keine Sorgen machen.} 9. Qd2 Nxd4 10. Bxd4 Be6 11. h4 Qa5 12. h5 Rfc8 13. hxg6 hxg6 14. g4 b5 15. g5 Nh7 16. Bxg7 Kxg7 17. Qd4+ f6 18. gxf6+ Nxf6 19. e5 dxe5 20. Qxe5 Bf7 {½-½ (20) Nikologorsky,M (2222)-Manik,M (2400) Pardubice 2018}) 9. Ncb5 $2 $146 {[%emt 0:21:05]} ({Predecessor:} 9. Nf5 $1 $18 {[%cal Rf5g7]} Qxb2 10. Nxg7+ Kd8 (10... Kf8 11. Na4 Qa3 12. Bh6 Qxa4 13. Nh5+ Ke8 14. Nxf6+ exf6 15. Bg7 Qb4+ 16. Qd2 Qxd2+ 17. Kxd2 {½-½ (27) Erlekam,S (1891)-Von Schlippe,N (2026) Neumarkt 2016}) 11. Kd2) 9... Qa5+ {[%emt 0:19:08]} 10. Qd2 {[%emt 0:06:58]} Qxd2+ {[%emt 0:00:34]} 11. Kxd2 {[%emt 0:00:57]} O-O {[%emt 0:01:01]} 12. c4 {[%emt 0:01:32]} a6 13. Nxc6 {[%emt 0:01:58]} bxc6 {[%emt 0:03:03]} 14. Nd4 {[%emt 0:00:57]} Bb7 {[%emt 0:00:29]} 15. Rac1 {[%emt 0:03:45]} Nd7 {[%emt 0:02:22]} (15... a5 $15) 16. Rhd1 {[%emt 0:03:56]} c5 {[%emt 0:04:25]} 17. Nc2 {[%emt 0:00:14]} a5 {[%emt 0:00:55]} 18. b3 {[%emt 0:03:50]} Bc6 {[%emt 0:03:55]} 19. a3 {[%emt 0:03:48]} Rfb8 {[%emt 0:10:04]} 20. Rb1 {[%emt 0:01:06]} Kf8 {[%emt 0:09:46]} 21. Ke1 {[%emt 0:07:36]} (21. a4 $11) 21... Rb7 {[%emt 0:01:17]} 22. Bd2 {[%emt 0:05:11]} Rab8 {[%emt 0:01:18]} 23. Na1 {[%emt 0:10:45]} Bxa1 {[%emt 0:05:40]} 24. Rxa1 {[%emt 0:00:40]} Rxb3 {[%emt 0:00:10]} 25. Bxa5 {[%emt 0:01:08]} Ra8 {[%emt 0:00:12]} 26. Bd2 {[%emt 0:00:19]} Raxa3 {[%emt 0:00:16]} 27. Rdb1 {[%emt 0:00:53]} Rxb1+ {[%emt 0:01:21]} 28. Rxb1 {[%emt 0:00:01]} f6 {[%emt 0:01:31]} 29. Bc1 {[%emt 0:03:00]} Ra4 {[%emt 0:01:29]} 30. Bd2 {[%emt 0:04:43]} Ne5 {[%emt 0:01:39]} 31. Bd1 {[%emt 0:02:53]} Ra8 {[%emt 0:01:04]} ({Stronger than} 31... Rxc4 32. Rb8+ Kf7 33. Bb3 $11) ({Worse is} 31... Nxc4 32. Bxa4 Bxa4 33. Rb8+ Kf7 34. Bc3 $11) 32. Be2 {[%emt 0:00:50]} Bd7 {[%emt 0:01:32]} 33. Rb7 {[%emt 0:00:59]} Be6 {[%emt 0:00:21]} 34. Bh6+ {[%emt 0:02:36]} Kf7 {[%emt 0:00:16]} 35. f4 {[%emt 0:00:35] [#]} Nxc4 $2 {[%emt 0:01:16]} (35... Nc6 $1 $19 36. f5 Bc8) 36. g4 {[%emt 0:00:59]} Na5 {[%emt 0:01:23]} 37. Rb1 {[%emt 0:00:40]} Bc4 {[%emt 0:04:55]} 38. Ra1 {[%emt 0:00:35]} Bxe2 {[%emt 0:00:18]} 39. Kxe2 {[%emt 0:00:17]} Ra7 {[%emt 0:00:10]} 40. Kd3 {[%emt 0:00:00]} Nc6 {[%emt 0:00:00]} 41. Rxa7 {[%emt 0:03:20]} Nxa7 {[%emt 0:01:00]} 42. Kc4 {[%emt 0:03:17]} Nc6 {[%emt 0:00:38]} 43. g5 {[%emt 0:00:46]} fxg5 {[%emt 0:01:45]} 44. Bxg5 {[%emt 0:00:20]} Ke6 {[%emt 0:00:09]} 45. e5 {[%emt 0:00:17]} Nd4 {[%emt 0:00:20]} 46. Bh4 {[%emt 0:02:58]} Nf5 {[%emt 0:01:50]} 47. Bf2 {[%emt 0:01:05]} dxe5 {[%emt 0:00:13]} 48. fxe5 {[%emt 0:00:27]} Kxe5 {[%emt 0:00:16]} 49. Kxc5 {[%emt 0:00:01]} Kf4 {[%emt 0:00:27]} 50. Kd5 {[%emt 0:01:00]} e5 {[%emt 0:00:52]} 51. Ba7 {[%emt 0:00:44]} e4 {[%emt 0:00:39]} 52. Bb8+ {[%emt 0:00:40]} Kf3 {[%emt 0:00:18]} 53. Be5 {[%emt 0:00:33]} e3 {[%emt 0:00:06]} 54. Bc3 {[%emt 0:00:05]} e2 {[%emt 0:00:03]} 55. Ke6 {[%emt 0:00:37]} Kf2 {[%emt 0:00:09]} 56. Kf7 {[%emt 0:00:04]} e1=Q {[%emt 0:00:09]} 57. Bxe1+ {[%emt 0:00:05]} Kxe1 {[%emt 0:00:08]} 58. Kg8 {[%emt 0:00:03]} h5 {[%emt 0:00:04]} 59. Kf7 {[%emt 0:00:14]} Kf2 {[%emt 0:00:36]} 60. Kxg6 {[%emt 0:00:09]} h4 {[%emt 0:00:04]} 61. Kxf5 {[%emt 0:00:40]} Kf3 {[%emt 0:03:41]} 62. h3 {[%emt 0:01:19]} Kg3 {[%emt 0:00:35]} 63. Ke4 {[%emt 0:00:04]} Kg2 {[%emt 0:00:20]} 64. Kf4 {[%emt 0:00:38]} Kxh3 {[%emt 0:00:10]} 65. Kf3 $8 {[%emt 0:00:00]} Kh2 $11 {[%emt 0:00:08]} 66. Kf2 {[%emt 0:00:04]} h3 {[%emt 0:00:37]} 67. Kf1 $11 {[%emt 0:00:06]} Kh1 {[%emt 0:00:06]} 68. Kf2 {[%emt 0:00:04]} Kh2 {[%emt 0:00:03]} 69. Kf1 {[%emt 0:00:04]} 1/2-1/2

[Event "FIDE WCCC U10 2018"]
[Site "Santiago de Compostela"]
[Date "2018.11.13"]
[Round "9"]
[White "Deuer, Marius"]
[Black "Vagman, Roy"]
[Result "1/2-1/2"]
[ECO "A06"]
[WhiteElo "1695"]
[BlackElo "1970"]
[Annotator "NA RC"]
[PlyCount "193"]
[EventDate "2018.11.04"]
[EventType "swiss"]
[EventCountry "ESP"]
[SourceTitle "playchess.com"]
[Source "ChessBase"]
[SourceQuality "1"]
[TimeControl "40/5400+30:1800+30"]

{[%evp 9,192,2,22,15,17,24,32767,32767,4,0,14,4,22,8,30,-31,-11,-12,0,7,32767,-25,-25,32767,32767,32767,32767,32767,17,32767,31,35,32,25,32767,32767,40,32767,32767,36,42,32767,85,32767,32767,0,72,0,89,86,86,91,32767,32767,32767,32767,93,32767,32767,22,6,0,32767,32767,32767,0,0,32767,-130,32767,32767,32767,-144,32767,0,-572,0,32767,-730,-752,-751,-728,-520,-571,-586,-516,-367,-327,-366,-399,-285,-271,32767,32767,32767,32767,-28,-92,-112,-91,-108,-93,32767,-47,-27,-84,-96,0,-82,-96,-79,-85,-94,-87,-61,-89,-25,-106,-60,0,-93,-40,-54,0,-108,-106,-61,-92,0,-29,0,-93,-92,32767,-106,0,0,-93,-31,-29,-107,-89,-79,-29,-29,0,0,-8,-8,0,0,0,-8,0,32767,32767,32767,32767,0,32767,0,0,0,0,0,-8,0,0,0,0,0,0,32767,32767,32767,0,32767,32767,32767,32767,0,32767,32767,32767,0]} 1. Nf3 {[%emt 0:00:00]} d5 {[%emt 0:00:00]} 2. e3 {[%emt 0:00:00]} Nf6 {[%emt 0:01:24]} 3. b3 {[%emt 0:00:31]} g6 {[%emt 0:01:52]} 4. Bb2 {[%emt 0:00:20]} Bg7 {[%emt 0:00:19]} 5. c4 {[%emt 0:00:17]} e6 {[%emt 0:01:19] A06: Zukertort-Eröffnung} (5... O-O 6. Be2 c5 7. O-O dxc4 8. bxc4 Nc6 9. d3 b6 10. Nc3 Bb7 11. Rb1 e6 12. Qc2 Qe7 13. Nd2 Rfd8 14. a3 Ne8 15. f4 Nd6 16. Nce4 Nxe4 17. Nxe4 {0-1 (35) Kryvoruchko,Y (2710)-Anand,V (2803) Berlin 2015}) 6. d4 {[%emt 0:01:27]} O-O {[%emt 0:01:26] LiveBook: 3 Games} 7. Nbd2 {[%emt 0:01:13]} a5 $146 {[%emt 0:02:05]} ({Vorgänger:} 7... b6 8. Bd3 Bb7 9. cxd5 Nxd5 10. O-O c5 11. Nc4 Nc6 12. dxc5 Bxb2 13. Nxb2 {1-0 (55) Sharafiev,A (2432)-Gogolev,A (2389) Sochi 2018}) 8. Bd3 {[%emt 0:03:41]} b6 {[%emt 0:01:54]} 9. O-O {[%emt 0:03:36]} Bb7 {[%emt 0:01:59]} 10. a3 {[%emt 0:09:16]} Ne4 {[%emt 0:02:07]} 11. Qc2 {[%emt 0:03:59]} f5 {[%emt 0:01:24]} 12. Ne5 {[%emt 0:04:55]} (12. cxd5 $11 exd5 13. Rac1) 12... a4 {[%emt 0:22:32]} 13. Rad1 {[%emt 0:12:17]} axb3 {[%emt 0:09:48]} 14. Nxb3 {[%emt 0:04:28]} Nd7 {[%emt 0:09:47]} 15. Nxd7 Qxd7 {[%emt 0:00:04]} 16. f3 {[%emt 0:03:06]} Nf6 {[%emt 0:01:48]} 17. Rc1 {[%emt 0:02:47]} Rf7 {[%emt 0:03:52]} 18. c5 {[%emt 0:06:41]} Qd8 {[%emt 0:03:07]} 19. Qe2 {[%emt 0:01:17]} Bh6 {[%emt 0:05:01]} 20. c6 {[%emt 0:07:07]} Bc8 {[%emt 0:00:17]} 21. Ra1 {[%emt 0:00:24]} Nh5 {[%emt 0:03:32]} 22. g3 {[%emt 0:07:35]} Qd6 {[%emt 0:07:49]} 23. Rfc1 {[%emt 0:03:06]} Bg7 {[%emt 0:06:24]} 24. f4 {[%emt 0:07:59]} Nf6 25. a4 {[%emt 0:00:24]} Qb4 {[%emt 0:02:33] [#]} 26. Qc2 {[%emt 0:00:09]} (26. Qd1 $1 $16 Qf8 27. a5) 26... Qe7 $1 {[%emt 0:01:39]} 27. Qe2 {[%emt 0:00:44]} Qb4 {[%emt 0:00:18]} 28. Qc2 {[%emt 0:00:04]} Qe7 {[%emt 0:00:17]} 29. a5 {[%emt 0:02:47]} bxa5 {[%emt 0:00:50]} 30. Rxa5 {[%emt 0:00:08]} Rxa5 {[%emt 0:00:40]} 31. Nxa5 {[%emt 0:00:07]} Ng4 {[%emt 0:01:07]} 32. Re1 {[%emt 0:01:05]} g5 {[%emt 0:00:57]} 33. h3 {[%emt 0:01:57]} Nf6 {[%emt 0:00:54]} 34. Ra1 {[%emt 0:04:43]} gxf4 {[%emt 0:01:12]} 35. Ba3 {[%emt 0:00:33]} Qe8 {[%emt 0:00:18]} 36. gxf4 {[%emt 0:00:11]} Bf8 {[%emt 0:00:09]} 37. Bxf8 {[%emt 0:00:33]} Kxf8 {[%emt 0:00:05]} 38. Nb7 {[%emt 0:01:48]} Rg7+ {[%emt 0:00:13]} 39. Kh1 {[%emt 0:04:36]} Qh5 {[%emt 0:00:36]} 40. Bf1 {[%emt 0:00:00]} Ne4 {[%emt 0:00:00]} 41. Bg2 {[%emt 0:02:40] [#]} Kf7 {[%emt 0:07:21]} (41... Qh4 $1 $17 42. Ra8 Qe1+ 43. Kh2 Qg3+ 44. Kh1 Rg6) 42. Ra8 $2 {[%emt 0:03:32] [#]} (42. Nc5 $11 {and White is okay.}) 42... Rg8 $2 {[%emt 0:00:57]} (42... Qh4 $1 $19 {[%cal Rh4e1]} 43. Rxc8 Qe1+ 44. Kh2 Kf6) 43. Ra7 {[%emt 0:00:40]} Qh4 {[%emt 0:01:29]} 44. Ra2 {[%emt 0:01:38]} Qe1+ {[%emt 0:00:35]} 45. Kh2 {[%emt 0:00:03]} Qxe3 {[%emt 0:00:50]} 46. Qe2 {[%emt 0:01:43]} Qxf4+ {[%emt 0:00:23]} 47. Kg1 {[%emt 0:00:07]} Ng3 {[%emt 0:01:07]} 48. Qf2 {[%emt 0:00:33]} Qc1+ {[%emt 0:01:35]} 49. Kh2 {[%emt 0:00:10]} Qxc6 {[%emt 0:00:28]} 50. Qxg3 {[%emt 0:01:17]} Rxg3 {[%emt 0:00:08]} 51. Nd8+ {[%emt 0:00:06]} Kf6 {[%emt 0:00:57]} 52. Nxc6 {[%emt 0:00:06]} Rc3 {[%emt 0:00:44]} 53. Ne5 {[%emt 0:02:08]} (53. Nb4 $11) 53... c5 {[%emt 0:00:13]} 54. Nf3 {[%emt 0:00:28]} cxd4 {[%emt 0:00:20]} 55. Nxd4 {[%emt 0:00:07]} Rc4 {[%emt 0:01:11]} 56. Rd2 {[%emt 0:01:09]} Bd7 {[%emt 0:00:27]} 57. Nxe6 {[%emt 0:05:28]} (57. Nf3 $11) 57... Bxe6 {[%emt 0:00:10]} 58. Bxd5 {[%emt 0:00:03]} Bxd5 {[%emt 0:00:27]} 59. Rxd5 {[%emt 0:01:02]} Kg5 {[%emt 0:03:00]} 60. Kg3 {[%emt 0:05:10]} Rc3+ {[%emt 0:00:08]} 61. Kg2 {[%emt 0:00:17]} h5 {[%emt 0:00:23]} 62. Rd4 {[%emt 0:02:36]} h4 {[%emt 0:01:42]} 63. Rd2 {[%emt 0:05:01]} Rb3 {[%emt 0:01:16]} 64. Rc2 {[%emt 0:00:37]} Rg3+ {[%emt 0:00:38]} 65. Kh2 $1 {[%emt 0:00:08]} Re3 {[%emt 0:00:07]} 66. Kg2 {[%emt 0:01:18]} Kf4 {[%emt 0:00:33]} 67. Rf2+ {[%emt 0:00:27]} Ke4 {[%emt 0:00:07]} 68. Ra2 {[%emt 0:00:17]} Kf4 {[%emt 0:01:30]} ({Black should play} 68... Rg3+ $17 69. Kf2 Rd3 70. Ra4+ Rd4) 69. Rf2+ {[%emt 0:00:24]} Ke5 {[%emt 0:00:03]} 70. Ra2 {[%emt 0:00:30]} Rg3+ {[%emt 0:01:03]} 71. Kh2 {[%emt 0:00:19]} Kf6 {[%emt 0:01:08]} 72. Ra6+ {[%emt 0:00:14]} Kg5 {[%emt 0:01:02]} 73. Ra2 {[%emt 0:01:01]} Rb3 {[%emt 0:01:55]} 74. Kg2 {[%emt 0:00:16]} Rb1 {[%emt 0:00:27]} 75. Rc2 {[%emt 0:00:30]} Ra1 {[%emt 0:00:27]} 76. Rb2 {[%emt 0:00:40]} Ra3 {[%emt 0:00:24]} 77. Rc2 {[%emt 0:00:11]} Kf4 {[%emt 0:00:08]} 78. Rc4+ {[%emt 0:00:04]} Ke3 {[%emt 0:00:03]} 79. Rxh4 {[%emt 0:04:47]} f4 {[%emt 0:00:23]} 80. Rh8 {[%emt 0:00:14]} Ra2+ {[%emt 0:03:43]} 81. Kg1 {[%emt 0:00:47]} Ra1+ {[%emt 0:00:50]} 82. Kh2 {[%emt 0:00:07]} f3 {[%emt 0:00:40]} 83. Re8+ {[%emt 0:01:33]} Kf2 {[%emt 0:00:12]} 84. Rf8 {[%emt 0:00:22]} Ra3 {[%emt 0:00:25]} 85. h4 {[%emt 0:00:45]} Ra7 {[%emt 0:06:44]} 86. h5 {[%emt 0:02:41]} Rg7 {[%emt 0:02:04]} 87. h6 {[%emt 0:01:40]} Rg6 {[%emt 0:00:45]} (87... Rg5 $5 88. Kh3 $8 Rh5+ 89. Kg4 Rxh6 90. Rxf3+ Ke2 $11) 88. Rh8 {[%emt 0:00:15]} Rg2+ {[%emt 0:03:14]} (88... Rf6 $5) 89. Kh3 {[%emt 0:00:08]} Kg1 {[%emt 0:00:41]} 90. Rf8 {[%emt 0:02:17]} f2 {[%emt 0:03:21]} 91. Kh4 {[%emt 0:00:28]} Rh2+ {[%emt 0:01:02]} 92. Kg5 {[%emt 0:00:09]} Rg2+ {[%emt 0:01:08]} 93. Kh5 {[%emt 0:00:06]} Rh2+ {[%emt 0:01:49]} 94. Kg6 {[%emt 0:00:05]} Rh3 {[%emt 0:01:00]} 95. Rxf2 {[%emt 0:00:42]} Kxf2 {[%emt 0:00:12]} 96. h7 {[%emt 0:00:10]} Rxh7 $11 {[%emt 0:00:08]} 97. Kxh7 1/2-1/2

[Event "FIDE WCCC U10 2018"]
[Site "Santiago de Compostela"]
[Date "2018.11.13"]
[Round "9"]
[White "Emrikian, Aren"]
[Black "Kuhn, Clement"]
[Result "1/2-1/2"]
[ECO "B31"]
[WhiteElo "1658"]
[BlackElo "2087"]
[Annotator "NA RC"]
[PlyCount "87"]
[EventDate "2018.11.04"]
[EventType "swiss"]
[EventCountry "ESP"]
[SourceTitle "playchess.com"]
[Source "ChessBase"]
[SourceQuality "1"]
[TimeControl "40/5400+30:1800+30"]

{[%evp 16,87,27,32767,31,10,32767,0,0,-12,0,0,0,-30,-16,-31,-41,-60,-47,-180,-68,-127,-95,-109,32767,32767,32767,32767,-25,32767,32767,-22,32767,32767,32767,32767,32767,-33,32767,0,0,0,0,-23,-35,32767,32767,32767,-41,32767,-76,32767,-18,32767,32767,32767,44,32767,32767,32767,32767,32767,-35,-24,32767,0,81,79,32767,89,87,78,74,23]} 1. e4 {[%emt 0:00:00]} c5 {[%emt 0:00:00]} 2. Nf3 {[%emt 0:00:00]} Nc6 {[%emt 0:00:00]} 3. Bb5 {[%emt 0:00:00]} g6 {[%emt 0:00:05]} 4. Bxc6 {[%emt 0:00:31]} dxc6 {[%emt 0:00:05]} 5. d3 {[%emt 0:00:31]} Bg7 {[%emt 0:00:08] B31: Sicilian: 2...Nc6 3 Bb5 g6} 6. Nbd2 {[%emt 0:00:49]} (6. h3 Nf6 7. Nc3 O-O 8. O-O Ne8 9. Be3 b6 10. e5 f6 11. Re1 Nc7 12. Qd2 fxe5 13. Bh6 Rxf3 14. Bxg7 Kxg7 15. gxf3 Bxh3 16. Rxe5 e6 17. Rg5 {1-0 (33) Caruana,F (2827)-Gelfand,B (2703) Batumi 2018}) 6... Nf6 {[%emt 0:00:27]} 7. a4 {[%emt 0:01:01]} O-O {[%emt 0:01:56]} 8. O-O {[%emt 0:03:44]} b6 {[%emt 0:01:00]} 9. Re1 {[%emt 0:01:38]} Qc7 {[%emt 0:03:08]} 10. Nc4 {[%emt 0:03:14]} Nd7 $146 {[%emt 0:09:29]} ({Predecessor:} 10... Ba6 11. Bg5 Rad8 12. Qe2 h6 13. Bh4 Nh5 14. e5 Bc8 {0-1 (49) Bagatsch,T (2125)-Reichel,N (2148) Germany 2006}) 11. c3 {[%emt 0:03:32]} e5 {[%emt 0:01:23]} 12. Qb3 {[%emt 0:03:04]} Ba6 {[%emt 0:08:38]} 13. Be3 {[%emt 0:04:11]} Rfe8 {[%emt 0:02:31]} 14. Red1 {[%emt 0:04:22]} Nf8 {[%emt 0:07:32]} 15. Nfd2 {[%emt 0:08:58]} Rad8 {[%emt 0:02:13]} 16. Qc2 {[%emt 0:02:08]} Ne6 {[%emt 0:00:27]} 17. g3 {[%emt 0:08:01] [#]} (17. Nf3 $15) 17... Rd7 {[%emt 0:04:22]} ({Black should try} 17... f5 $1 $19 18. f3 f4) 18. b4 {[%emt 0:04:35]} cxb4 {[%emt 0:01:18]} 19. cxb4 {[%emt 0:00:24]} Nd4 {[%emt 0:13:52]} 20. Bxd4 {[%emt 0:01:28]} Rxd4 {[%emt 0:00:32]} 21. Nb3 {[%emt 0:05:14]} Rd7 {[%emt 0:01:30]} 22. a5 {[%emt 0:04:46]} Bc8 {[%emt 0:04:35]} 23. Ne3 {[%emt 0:03:45]} Re6 {[%emt 0:09:29]} 24. Rac1 {[%emt 0:07:05]} Qd8 {[%emt 0:03:24]} 25. Nc4 {[%emt 0:04:54]} Bh6 {[%emt 0:02:59]} 26. Ra1 {[%emt 0:01:21]} Bb7 {[%emt 0:00:31]} 27. Qc3 {[%emt 0:05:50]} Bg7 {[%emt 0:01:27]} 28. Ra2 {[%emt 0:03:28]} Kh8 {[%emt 0:01:53]} 29. Qc2 {[%emt 0:03:40]} f5 {[%emt 0:04:12]} 30. Raa1 {[%emt 0:01:14]} Bf8 {[%emt 0:01:37]} 31. exf5 {[%emt 0:01:00]} gxf5 {[%emt 0:00:22]} 32. Qc3 {[%emt 0:01:05]} Bg7 {[%emt 0:00:13]} 33. Rac1 {[%emt 0:02:10]} Ba6 {[%emt 0:03:03]} (33... Qc7 $17 34. Ncd2 {[#]} c5 $1 {[%mdl 512]}) 34. Qc2 {[%emt 0:01:31]} Bb5 {[%emt 0:01:05]} 35. Kg2 {[%emt 0:01:56]} e4 $2 {[%emt 0:03:46]} (35... f4 $17 36. Kg1 Re8) 36. dxe4 {[%emt 0:01:11]} Rxe4 {[%emt 0:00:02]} 37. Rxd7 {[%emt 0:01:36]} Qxd7 {[%emt 0:00:08]} 38. Qd2 {[%emt 0:01:26]} Qxd2 {[%emt 0:01:45]} 39. Nbxd2 {[%emt 0:00:51]} Re2 {[%emt 0:01:38]} 40. Kf3 {[%emt 0:00:00]} Re8 {[%emt 0:00:00]} (40... Re6 $11 {remains equal.}) 41. Nd6 {[%emt 0:06:50]} Rf8 {[%emt 0:16:26]} 42. Nxb5 {[%emt 0:06:27]} cxb5 {[%emt 0:01:27]} 43. axb6 {[%emt 0:05:35]} axb6 {[%emt 0:00:15]} 44. Nb3 $11 {[%emt 0:01:40]} 1/2-1/2

[Event "FIDE WCCC U10 2018"]
[Site "Santiago de Compostela"]
[Date "2018.11.13"]
[Round "9"]
[White "Li Yihao"]
[Black "Mardov, Dimitar"]
[Result "0-1"]
[ECO "B41"]
[WhiteElo "1601"]
[BlackElo "1985"]
[Annotator "NA RC"]
[PlyCount "116"]
[EventDate "2018.11.04"]
[EventType "swiss"]
[EventCountry "ESP"]
[SourceTitle "playchess.com"]
[Source "ChessBase"]
[SourceQuality "1"]
[TimeControl "40/5400+30:1800+30"]

{[%evp 8,116,52,32767,32767,37,26,32767,32767,32767,32767,67,53,-10,27,14,54,19,24,3,41,13,23,24,33,35,42,27,32,14,32767,32767,8,-13,-8,-82,-95,32767,32767,32767,32767,32767,-79,-151,-81,-204,-127,32767,-150,32767,-133,-158,-36,-10,95,32767,-222,-238,-234,-304,32767,-173,-157,-157,-163,-194,-210,32767,-179,32767,32767,-301,32767,-329,-316,-328,-349,-350,-390,-327,-420,-302,-422,-381,-334,-325,-383,-437,-460,-438,-485,-465,32767,32767,-452,-423,-507,-464,-476,-467,-528,-652,-783,-558,-562,-586,32767,-637,-772,-680,-1149]} 1. e4 {[%emt 0:00:00]} c5 {[%emt 0:00:00]} 2. Nf3 {[%emt 0:00:00]} e6 {[%emt 0:00:00]} 3. d4 {[%emt 0:00:03]} cxd4 {[%emt 0:00:00]} 4. Nxd4 {[%emt 0:00:07]} a6 {[%emt 0:00:00]} 5. c4 {[%emt 0:00:40]} Qc7 {[%emt 0:02:11]} 6. Nc3 {[%emt 0:01:45]} Nf6 {[%emt 0:00:30]} 7. a3 b6 {[%emt 0:00:57]} 8. Be2 {[%emt 0:05:09] B41: Sicilian: Kan Variation: 5 c4} (8. f3 Bb7 9. Be3 Nc6 10. Rc1 Nxd4 11. Bxd4 Bd6 12. g3 h5 13. Qd2 h4 14. g4 Bf4 15. Be3 Bxe3 16. Qxe3 {1-0 (84) Triapishko,A (2508)-Dubov,D (2703) Sochi 2018}) 8... Bb7 {[%emt 0:00:47]} 9. f3 {LiveBook: 94 Games} Nc6 {[%emt 0:01:43]} 10. Nxc6 {[%emt 0:13:16]} (10. Be3 $14) 10... Bxc6 {[%emt 0:02:08]} 11. Be3 {[%emt 0:07:33]} Be7 $146 {[%emt 0:04:01]} ({Predecessor:} 11... Bd6 12. Qd2 Bxh2 13. Bxb6 Qxb6 {0-1 (13) De Putter,T (2020)-Landa,K (2584) Vlissingen 2006}) 12. Qc2 {[%emt 0:00:44]} O-O {[%emt 0:04:25]} 13. O-O {[%emt 0:00:28]} d6 {[%emt 0:03:53]} 14. b4 {[%emt 0:05:40]} Rfc8 {[%emt 0:05:31]} 15. Qb3 {[%emt 0:00:56]} Nd7 {[%emt 0:06:02]} 16. Rac1 {[%emt 0:03:28]} Qb8 {[%emt 0:02:09]} 17. Rfd1 {[%emt 0:08:07]} Bd8 {[%emt 0:05:04]} 18. Rd2 {[%emt 0:10:59]} Bc7 {[%emt 0:03:03]} 19. Rcd1 {[%emt 0:03:18]} b5 $1 {[%emt 0:08:13]} 20. Bf4 {[%emt 0:06:21]} bxc4 {[%emt 0:16:34]} 21. Bxc4 {[%emt 0:07:43]} (21. Qxc4 $11 {remains equal.} Qa7+ 22. Kf1) 21... d5 $1 {[%emt 0:03:44]} 22. exd5 {[%emt 0:13:53]} Bxf4 {[%emt 0:03:30]} 23. dxc6 {[%emt 0:00:18]} Ne5 {[%emt 0:08:29]} 24. Rc2 {[%emt 0:03:51]} Nxc6 {[%emt 0:05:36]} 25. Ne4 {[%emt 0:01:00] [#]} (25. Kf1 $142) 25... Bxh2+ {[%emt 0:02:32]} (25... Qb6+ $1 $19 {has better winning chances.} 26. Nc5 Rd8) 26. Kf1 {[%emt 0:02:46]} (26. Kh1 $17 Re8 27. Ng5) 26... Ne5 {[%emt 0:05:18]} 27. Be2 {[%emt 0:02:34] [#]} Qb6 $1 {[%emt 0:02:31]} (27... Rxc2 28. Qxc2 a5 29. bxa5 $11) 28. Rxc8+ {[%emt 0:01:08]} Rxc8 {[%emt 0:00:22]} 29. Nc5 {[%emt 0:00:08] [#]} g6 {[%emt 0:01:05]} (29... a5 $1 $17 30. Qc3 h6) 30. Qe3 {[%emt 0:01:01]} a5 {[%emt 0:03:49]} (30... Nc6 $11) 31. Qe4 {[%emt 0:00:26]} axb4 {[%emt 0:00:55]} 32. axb4 {[%emt 0:00:07]} Nc6 {[%emt 0:01:03]} 33. Rb1 {[%emt 0:01:40]} Nxb4 {[%emt 0:01:54]} 34. Qxb4 {[%emt 0:00:08]} Qxb4 {[%emt 0:00:47]} 35. Rxb4 {[%emt 0:00:07]} Rxc5 {[%emt 0:00:14]} 36. Rb7 {[%emt 0:00:19]} Bg3 {[%emt 0:00:35]} 37. Bb5 {[%emt 0:00:17]} Rc1+ {[%emt 0:01:13]} 38. Ke2 {[%emt 0:00:01]} Kf8 {[%emt 0:02:05]} 39. Ra7 {[%emt 0:02:36]} Rg1 {[%emt 0:03:12]} 40. Ra8+ {[%emt 0:00:00]} Kg7 {[%emt 0:00:00]} 41. Ra7 {[%emt 0:00:47]} Rxg2+ {[%emt 0:03:34]} 42. Kd3 {[%emt 0:00:08]} Rf2 {[%emt 0:03:39]} 43. Ke4 {[%emt 0:00:11]} Rb2 {[%emt 0:01:33]} 44. Be8 {[%emt 0:00:24]} Rb4+ {[%emt 0:00:37]} 45. Ke3 {[%emt 0:00:12]} Rf4 {[%emt 0:00:18]} 46. Bd7 {[%emt 0:00:17]} Rf6 {[%emt 0:00:40]} 47. Ke4 {[%emt 0:00:32]} h5 {[%emt 0:00:31]} 48. Ra1 {[%emt 0:00:31]} h4 {[%emt 0:00:31]} 49. Rh1 {[%emt 0:00:19]} Rf4+ {[%emt 0:01:01]} 50. Ke3 {[%emt 0:00:11]} Rc4 {[%emt 0:00:52]} 51. Bb5 {[%emt 0:00:12]} Rb4 {[%emt 0:00:16]} 52. Be2 {[%emt 0:00:13]} f5 {[%emt 0:00:08]} 53. Ba6 {[%emt 0:00:17]} Kf6 {[%emt 0:00:40]} 54. Bc8 {[%emt 0:00:39]} (54. Kd3 $142) 54... Rb3+ {[%emt 0:01:22]} 55. Ke2 {[%emt 0:00:11]} Rc3 {[%emt 0:00:22]} 56. Bd7 {[%emt 0:00:10]} g5 {[%emt 0:00:28]} 57. Be8 {[%emt 0:00:31]} Ke5 {[%emt 0:00:30]} 58. Bd7 {[%emt 0:00:10]} Kf4 $19 {[%emt 0:02:05]} 0-1